bitfinex/quotes_SOLUSD_20251002
["timestamp","ask_amount","ask_price","bid_price","bid_amount"]
[1759398099650,138.03196595,224.62,224.59,0.2]
[1759398099856,0.68,224.61,224.59,0.2]
[1759398101131,137.35196595,224.62,224.59,0.2]
[1759398101326,0.68,224.61,224.59,0.2]
[1759398101558,0.68,224.6,224.59,0.2]
[1759398106260,5.13221609,224.61,224.59,0.2]
[1759398109151,4.45221609,224.61,224.59,0.2]
[1759398109334,5.13221609,224.61,224.59,0.2]
[1759398111045,0.68,224.6,224.59,0.2]
[1759398111657,5.13221609,224.61,224.59,0.2]
[1759398112535,132.9,224.62,224.6,0.68]
[1759398112736,132.9,224.62,224.61,0.68]
[1759398113638,132.9,224.62,224.59,31.32]
[1759398113845,132.9,224.62,224.6,0.68]
[1759398114546,132.9,224.62,224.61,0.69]
[1759398115756,132.9,224.62,224.59,36.46253821]
[1759398115956,132.9,224.62,224.6,0.69]
[1759398119479,132.9,224.62,224.59,31.32]
[1759398119660,132.9,224.62,224.6,0.69]
[1759398119860,132.9,224.62,224.59,31.32]
[1759398120180,133.56,224.62,224.59,32.01]
[1759398121484,137.3519895,224.62,224.59,31.32]
[1759398121658,0.66,224.61,224.59,31.32]
[1759398123951,132.9,224.62,224.59,32.01]
[1759398124451,132.9,224.62,224.59,0.89]
[1759398124666,132.9,224.62,224.59,32.01]
[1759398124843,132.9,224.62,224.6,0.69]
[1759398125266,0.66,224.64,224.6,0.69]
[1759398125589,5.11179144,224.63,224.61,31.12]
[1759398125781,0.66,224.62,224.61,31.12]
[1759398126610,0.66,224.62,224.59,0.2]
[1759398126779,33.27467757,224.62,224.59,0.2]
[1759398126973,37.72742048,224.62,224.59,0.2]
[1759398127302,1.49467757,224.61,224.59,0.2]
[1759398127467,4.45235975,224.6,224.59,0.2]
[1759398127661,5.11235975,224.6,224.59,0.2]
[1759398138905,4.45219819,224.61,224.59,0.2]
[1759398139088,0.66,224.6,224.59,0.2]
[1759398139600,4.45219819,224.61,224.59,0.2]
[1759398140002,5.11219819,224.61,224.59,0.2]
[1759398140302,0.66,224.6,224.59,0.2]
[1759398141904,5.11235975,224.6,224.59,0.2]
[1759398142210,18.48581344,224.6,224.59,0.2]
[1759398146402,49.58581344,224.6,224.59,0.2]
[1759398147603,44.47345369,224.6,224.59,0.2]
[1759398147782,31.1,224.6,224.59,0.2]
[1759398148202,0.72,224.6,224.59,0.2]
[1759398149181,5.17235975,224.6,224.59,0.2]
[1759398151894,6.23514906,224.61,224.59,0.92]
[1759398152200,5.17218087,224.61,224.59,0.2]
[1759398155308,4.45218087,224.61,224.59,0.2]
[1759398155510,5.17218087,224.61,224.59,0.2]
[1759398156491,6.95506959,224.61,224.59,0.2]
[1759398157291,5.17218087,224.61,224.59,0.2]
[1759398159794,4.45218087,224.61,224.59,0.2]
[1759398160111,6.95506959,224.61,224.59,0.2]
[1759398160602,0.72,224.6,224.59,0.2]
[1759398161611,6.66703732,224.6,224.59,0.2]
[1759398161988,8.2179781,224.6,224.59,0.2]
[1759398162496,4.45235975,224.6,224.59,0.92]
[1759398162692,4.45235975,224.6,224.59,0.2]
[1759398166714,10.1727626,224.64,224.59,0.92]
[1759398167013,10.1727626,224.64,224.6,0.72]
[1759398167604,14.62433384,224.64,224.6,0.72]
[1759398169392,10.1727626,224.64,224.6,5.1723593]
[1759398169600,10.1727626,224.64,224.61,0.72]
[1759398171094,10.1727626,224.64,224.62,0.72]
[1759398171606,10.8927626,224.64,224.6,21.52]
[1759398171798,15.34437673,224.64,224.6,21.52]
[1759398172117,15.34437673,224.64,224.61,0.72]
[1759398172317,14.62437673,224.64,224.61,0.72]
[1759398172521,15.34437673,224.64,224.61,0.72]
[1759398173020,10.1727626,224.64,224.61,0.72]
[1759398173318,10.1727626,224.64,224.62,0.72]
[1759398174214,10.1727626,224.64,224.61,25.25208822]
[1759398174414,10.1727626,224.64,224.63,0.71]
[1759398175219,10.1727626,224.64,224.63,5.16176512]
[1759398175625,146.2674947,224.7,224.63,36.24176512]
[1759398175803,146.2674947,224.7,224.64,0.71]
[1759398175804,132.9,224.7,224.64,0.71]
[1759398176007,5.16996408,224.73,224.66,20.8]
[1759398176205,5.16996408,224.73,224.67,0.71]
[1759398177424,5.16996408,224.73,224.67,5.16089737]
[1759398177748,5.16996408,224.73,224.68,0.71]
[1759398177910,5.16996408,224.73,224.69,0.71]
[1759398178614,3.05410663,224.72,224.66,20.8]
[1759398178835,0.72,224.71,224.66,20.8]
[1759398179019,0.72,224.7,224.66,20.8]
[1759398179213,0.72,224.69,224.66,20.8]
[1759398179433,0.72,224.68,224.65,7.3]
[1759398179631,0.72,224.67,224.65,7.3]
[1759398180315,0.72,224.67,224.63,51.86]
[1759398180512,5.17109901,224.67,224.63,52.57]
[1759398180728,5.17109901,224.67,224.63,51.86]
[1759398180729,0.72,224.66,224.63,51.86]
[1759398182444,0.72,224.66,224.63,0.71]
[1759398184237,4.45124654,224.66,224.61,20.8]
[1759398184539,0.72,224.65,224.6,31.06]
[1759398184852,5.17136879,224.65,224.61,0.71]
[1759398185219,0.72,224.64,224.61,0.71]
[1759398185625,5.17172429,224.64,224.61,0.71]
[1759398186123,5.17172429,224.64,224.6,31.06]
[1759398186328,0.72,224.63,224.6,31.06]
[1759398186632,4.45172429,224.64,224.6,31.06]
[1759398186633,0.72,224.62,224.6,31.06]
[1759398189352,15.70458016,224.65,224.63,20.8]
[1759398189353,13.37047353,224.65,224.63,20.8]
[1759398189648,0.72,224.81,224.68,31.67647521]
[1759398189823,0.72,224.85,224.73,20.8]
[1759398190025,0.72,224.84,224.74,31.81]
[1759398190246,0.72,224.83,224.75,0.71]
[1759398191645,4.44800284,224.82,224.75,0.71]
[1759398191951,0.72,224.81,224.75,0.71]
[1759398193345,4.44839857,224.8,224.76,31.1]
[1759398193651,5.16839857,224.8,224.76,31.1]
[1759398193965,5.16839857,224.8,224.76,31.81]
[1759398194152,4.44839857,224.8,224.76,31.81]
[1759398194318,4.4482007,224.81,224.76,31.81]
[1759398194524,0.72,224.8,224.76,31.81]
[1759398195448,4.44859646,224.79,224.76,31.81]
[1759398196147,4.44859646,224.79,224.78,7.3]
[1759398202232,4.44832416,224.81,224.78,7.96]
[1759398202437,4.44832416,224.81,224.78,7.3]
[1759398202844,4.44832416,224.81,224.79,0.66]
[1759398203172,4.44832416,224.81,224.78,7.96]
[1759398203342,5.15832416,224.81,224.78,7.96]
[1759398203663,11.11968715,224.83,224.78,7.96]
[1759398203857,11.11968715,224.83,224.78,7.3]
[1759398204064,11.83968715,224.83,224.79,0.68]
[1759398204565,0.72,224.82,224.79,0.68]
[1759398204740,0.72,224.82,224.78,7.3]
[1759398204943,0.72,224.82,224.78,7.98]
[1759398206956,4.4482007,224.81,224.78,7.3]
[1759398207130,4.44798653,224.83,224.79,0.68]
[1759398207639,5.16798653,224.83,224.79,0.68]
[1759398208937,5.16798653,224.83,224.78,7.3]
[1759398208938,0.72,224.82,224.78,7.3]
[1759398209165,15.56749905,224.83,224.78,7.3]
[1759398209166,0.72,224.81,224.78,38.34]
[1759398209739,0.72,224.82,224.78,39.02]
[1759398210058,4.44798653,224.83,224.78,39.02]
[1759398210245,4.44839857,224.8,224.78,38.34]
[1759398216256,5.16839857,224.8,224.78,38.34]
[1759398216672,4.44839857,224.8,224.78,38.34]
[1759398217162,4.44839857,224.8,224.78,7.3]
[1759398217349,5.16839857,224.8,224.78,7.3]
[1759398218449,0.72,224.79,224.78,7.3]
[1759398218670,4.44839857,224.8,224.78,7.3]
[1759398218878,5.16839857,224.8,224.78,7.3]
[1759398219364,5.16839857,224.8,224.78,7.98]
[1759398219365,4.44839857,224.8,224.78,7.98]
[1759398219566,4.44839857,224.8,224.78,7.3]
[1759398219768,4.44839857,224.8,224.79,0.68]
[1759398220173,4.44800284,224.82,224.79,0.68]
[1759398220355,4.44800284,224.82,224.78,7.3]
[1759398220540,4.44800284,224.82,224.79,0.68]
[1759398221180,4.44800284,224.82,224.8,0.68]
[1759398221650,4.447805,224.83,224.8,0.68]
[1759398221970,5.167805,224.83,224.8,0.68]
[1759398222677,4.447805,224.83,224.8,0.68]
[1759398222980,0.72,224.82,224.78,7.98]
[1759398223152,0.72,224.81,224.79,31.04]
[1759398224143,4.44835741,224.81,224.79,31.04]
[1759398226166,0.72,224.81,224.79,31.04]
[1759398226352,4.44800284,224.82,224.78,7.3]
[1759398226353,0.72,224.8,224.78,7.3]
[1759398226553,0.72,224.79,224.78,7.3]
[1759398226754,0.72,224.79,224.74,51.84]
[1759398226967,33.37410663,224.81,224.74,51.84]
[1759398227179,0.72,224.78,224.74,31.72]
[1759398227677,4.4489923,224.77,224.74,31.72]
[1759398228761,5.1689923,224.77,224.74,31.72]
[1759398229370,11.1211609,224.8,224.74,31.72]
[1759398229371,0.72,224.79,224.74,31.04]
[1759398229548,0.72,224.79,224.74,31.72]
[1759398229745,0.72,224.79,224.75,0.68]
[1759398230651,0.72,224.78,224.73,31.04]
[1759398230975,0.72,224.78,224.74,0.68]
[1759398231683,4.4489923,224.77,224.74,0.68]
[1759398231871,4.4489923,224.77,224.76,4.0]
[1759398238163,4.4489923,224.77,224.71,0.7]
[1759398238164,6.62150607,224.77,224.71,0.7]
[1759398239271,17.74398682,224.77,224.71,0.7]
[1759398241876,17.74398682,224.77,224.67,31.04]
[1759398242182,0.68,224.76,224.7,0.7]
[1759398242585,4.4493882,224.75,224.7,0.7]
[1759398242770,4.4493882,224.75,224.68,4.45076459]
[1759398242771,5.1293882,224.75,224.71,0.7]
[1759398244080,1.49251377,224.72,224.66,0.7]
[1759398244391,31.04,224.74,224.66,0.7]
[1759398244392,0.68,224.71,224.66,0.7]
[1759398244590,0.68,224.7,224.66,0.7]
[1759398245389,4.45057634,224.69,224.66,0.7]
[1759398247193,4.45057634,224.69,224.63,4.45173872]
[1759398247396,4.45057634,224.69,224.61,2.32182126]
[1759398247397,1.49251377,224.67,224.59,0.2]
[1759398247706,2.17251377,224.66,224.59,0.9]
[1759398247876,0.68,224.65,224.6,0.7]
[1759398248065,0.68,224.65,224.59,21.0]
[1759398248265,0.68,224.65,224.61,0.7]
[1759398248461,1.49251377,224.66,224.61,0.7]
[1759398248462,0.68,224.64,224.61,0.7]
[1759398248692,0.68,224.65,224.61,0.7]
[1759398249796,1.49251377,224.67,224.62,0.7]
[1759398249997,0.68,224.66,224.62,0.7]
[1759398252296,0.68,224.65,224.62,0.7]
[1759398255299,0.68,224.65,224.61,0.7]
[1759398256892,132.9,224.69,224.61,25.95206928]
[1759398257092,0.68,224.74,224.65,20.8]
[1759398257288,0.68,224.74,224.66,0.7]
[1759398260009,0.68,224.74,224.67,15.57840387]
[1759398260295,0.68,224.74,224.68,0.7]
[1759398260497,0.68,224.78,224.7,20.8]
[1759398260670,0.68,224.78,224.71,0.7]
[1759398262198,5.12880021,224.78,224.72,4.4499822]
[1759398262402,4.44880021,224.78,224.72,5.1599822]
[1759398262601,0.66,224.77,224.72,5.1599822]
[1759398263376,0.66,224.77,224.72,4.4499822]
[1759398263577,0.66,224.77,224.73,5.15971234]
[1759398264687,0.67,224.79,224.74,0.66]
[1759398264875,0.67,224.78,224.74,0.66]
[1759398265076,0.67,224.77,224.73,4.44971234]
[1759398265685,0.67,224.77,224.73,5.10971234]
[1759398268288,0.67,224.77,224.74,0.66]
[1759398271915,5.11865568,224.79,224.74,5.10952877]
[1759398272093,0.67,224.78,224.74,5.10952877]
[1759398272811,5.11800466,224.82,224.75,0.66]
[1759398273024,132.9,224.81,224.75,0.66]
[1759398273399,31.04,224.83,224.75,0.66]
[1759398273590,132.9,224.86,224.77,20.8]
[1759398273790,132.9,224.86,224.74,15.57349424]
[1759398273791,132.9,224.86,224.81,20.8]
[1759398274085,132.9,224.86,224.82,5.10800284]
[1759398274291,132.9,224.86,224.83,0.66]
[1759398274510,132.9,224.86,224.8,4.44822763]
[1759398274716,0.67,224.85,224.79,31.06]
[1759398275225,0.67,224.85,224.79,31.72]
[1759398276123,0.67,224.85,224.8,4.44839857]
[1759398276324,0.67,224.84,224.8,5.10839857]
[1759398277000,0.67,224.83,224.8,5.10839857]
[1759398278119,0.67,224.83,224.8,0.66]
[1759398278311,0.67,224.83,224.79,31.06]
[1759398278620,0.67,224.83,224.79,31.72]
[1759398279050,0.67,224.83,224.79,0.66]
[1759398280214,0.67,224.83,224.79,31.7]
[1759398280924,132.9,224.86,224.79,35.48851747]
[1759398281100,132.9,224.86,224.82,20.8]
[1759398281305,0.67,224.9,224.83,0.66]
[1759398281513,0.67,224.9,224.84,31.04]
[1759398281819,4.4464093,224.91,224.85,0.66]
[1759398282123,0.77,224.89,224.85,0.66]
[1759398282823,0.1,224.89,224.86,0.66]
[1759398283034,0.1,224.89,224.84,31.04]
[1759398283035,0.1,224.89,224.87,0.66]
[1759398283198,0.1,224.89,224.85,4.44740938]
[1759398283405,0.1,224.89,224.88,0.66]
[1759398283794,0.1,224.89,224.88,21.46]
[1759398285102,0.1,224.89,224.85,4.44740938]
[1759398285303,0.1,224.89,224.88,31.04]
[1759398285813,0.1,224.89,224.88,31.7]
[1759398287310,0.1,224.89,224.88,36.14681607]
[1759398288234,0.1,224.89,224.88,25.90681607]
[1759398288413,0.1,224.89,224.88,56.96681607]
[1759398290847,0.1,224.89,224.88,36.16681607]
[1759398291020,0.1,224.94,224.91,20.8]
[1759398291342,0.1,224.94,224.92,31.16]
[1759398291542,0.1,224.94,224.93,31.16]
[1759398291835,0.1,224.94,224.93,31.82]
[1759398292907,0.1,224.94,224.93,36.26582759]
[1759398297133,0.1,224.94,224.93,31.14]
[1759398299637,0.1,224.94,224.91,5.16619489]
[1759398299638,0.1,224.94,224.91,20.8]
[1759398299844,0.82,224.94,224.92,31.12]
[1759398300548,0.82,224.94,224.93,31.12]
[1759398300549,0.1,224.94,224.93,31.12]
[1759398300940,0.1,224.94,224.93,31.84]
[1759398301652,0.1,224.94,224.93,36.28582759]
[1759398301849,0.1,224.94,224.93,31.12]
[1759398302236,0.1,224.94,224.93,31.84]
[1759398302434,0.1,224.94,224.93,31.12]
[1759398302743,0.1,224.94,224.93,36.28582759]
[1759398303237,0.1,224.94,224.93,31.12]
[1759398303435,0.1,224.94,224.93,31.84]
[1759398303956,0.1,224.94,224.93,36.28582759]
[1759398305675,0.1,224.94,224.93,47.1623028]
[1759398307737,0.1,224.94,224.93,25.96582759]
[1759398307943,0.1,224.94,224.93,51.92]
[1759398308957,0.1,224.94,224.93,56.36582759]
[1759398309340,0.1,224.94,224.93,57.08582759]
[1759398309543,0.1,224.94,224.93,25.96582759]
[1759398309742,0.1,224.94,224.93,57.08582759]
[1759398309943,0.1,224.94,224.93,56.36582759]
[1759398311854,0.1,224.94,224.93,57.08582759]
[1759398312054,0.1,224.94,224.93,25.96582759]
[1759398312266,0.1,224.94,224.93,57.08582759]
[1759398318768,0.1,224.94,224.93,25.96582759]
[1759398318965,0.1,224.94,224.93,57.04582759]
[1759398320845,0.1,224.94,224.93,67.9223028]
[1759398322874,0.1,224.94,224.93,57.03582759]
[1759398324111,0.1,224.94,224.93,25.95582759]
[1759398324381,0.1,224.94,224.93,57.03582759]
[1759398325347,0.1,224.96,224.93,84.43983743]
[1759398325566,0.1,224.96,224.95,14.59108441]
[1759398325851,0.1,224.96,224.95,41.99647521]
[1759398326066,0.1,224.96,224.95,42.69647521]
[1759398327175,0.1,224.96,224.95,47.14190752]
[1759398328456,0.1,224.96,224.95,50.85651672]
[1759398329378,0.1,224.96,224.95,47.14190752]
[1759398330790,0.1,224.98,224.95,63.66845397]
[1759398331088,0.1,224.98,224.97,14.59471541]
[1759398331386,0.1,224.98,224.97,50.13975252]
[1759398331555,0.1,224.98,224.97,50.83975252]
[1759398331752,1e-08,224.98,224.97,51.06162215]
[1759398332363,1e-08,224.98,224.97,50.61711844]
[1759398332977,1e-08,224.98,224.97,51.06162215]
[1759398334483,1e-08,224.98,224.97,47.56601603]
[1759398335058,1e-08,224.98,224.97,47.12151232]
[1759398335889,1e-08,224.98,224.97,56.13323902]
[1759398337383,1e-08,224.98,224.97,60.55151964]
[1759398337702,1e-08,224.98,224.97,65.55418667]
[1759398338487,0.1,225.03,224.98,10.87647521]
[1759398338685,0.1,225.03,225.02,10.87647521]
[1759398338990,0.1,225.03,225.02,45.68815903]
[1759398339176,0.1,225.03,225.02,50.83220844]
[1759398339688,1e-08,225.03,225.02,53.84772788]
[1759398339891,1e-08,225.03,225.02,54.31178178]
[1759398340491,1e-08,225.03,225.02,54.33178178]
[1759398342799,0.68000001,225.03,225.02,19.02435891]
[1759398342966,1e-08,225.03,225.02,46.44052462]
[1759398343383,1e-08,225.03,225.02,47.14052462]
[1759398343586,1e-08,225.03,225.02,15.32052462]
[1759398343788,1e-08,225.03,225.02,46.48052462]
[1759398343980,1e-08,225.03,225.02,50.18398347]
[1759398344186,1e-08,225.03,225.02,46.48052462]
[1759398344581,0.68000001,225.03,225.02,46.48052462]
[1759398344770,1e-08,225.03,225.02,46.48052462]
[1759398345109,1e-08,225.03,225.02,52.59349028]
[1759398345608,1e-08,225.03,225.02,53.03789522]
[1759398345774,1e-08,225.03,225.02,52.59349028]
[1759398346307,1e-08,225.03,225.02,52.33789522]
[1759398346479,1e-08,225.03,225.02,51.91349028]
[1759398346819,1e-08,225.03,225.02,53.69193991]
[1759398347100,1e-08,225.03,225.02,54.83634485]
[1759398350886,1e-08,225.05,225.03,10.87647521]
[1759398351086,1e-08,225.05,225.04,46.21703882]
[1759398351293,1e-08,225.05,225.04,52.33000448]
[1759398351606,1e-08,225.07,225.05,20.73289787]
[1759398351903,1e-08,225.07,225.06,42.07647521]
[1759398352092,1e-08,225.07,225.06,48.18944087]
[1759398352292,1e-08,225.07,225.06,49.9674162]
[1759398352493,1e-08,225.07,225.06,39.09094099]
[1759398352705,1e-08,225.07,225.06,49.9674162]
[1759398353087,1e-08,225.07,225.06,53.66361437]
[1759398353584,1e-08,225.07,225.06,58.10687394]
[1759398354199,1e-08,225.07,225.06,54.41067577]
[1759398354791,0.68000001,225.07,225.06,35.58705872]
[1759398354996,0.68000001,225.07,225.06,66.76705872]
[1759398355403,1e-08,225.07,225.06,66.76705872]
[1759398356123,1e-08,225.07,225.06,35.58705872]
[1759398356423,1e-08,225.07,225.06,66.76705872]
[1759398356720,0.68000001,225.07,225.06,11.63420056]
[1759398356900,0.68000001,225.07,225.03,4.44385193]
[1759398357204,0.68,225.06,225.05,4.54224558]
[1759398357410,0.68,225.06,225.05,35.72224558]
[1759398357814,0.68,225.06,225.05,31.18]
[1759398358112,0.68,225.06,225.05,32.95860779]
[1759398358490,0.68,225.06,225.05,37.40206479]
[1759398361193,0.68,225.06,225.05,48.27854]
[1759398362597,1e-08,225.07,225.05,48.27854]
[1759398363116,1e-08,225.07,225.06,10.87647521]
[1759398363296,1e-08,225.07,225.06,15.31973478]
[1759398365526,1e-08,225.07,225.06,17.09810534]
[1759398367720,0.68000001,225.07,225.06,37.38163013]
[1759398368917,0.68000001,225.07,225.06,1.77837056]
[1759398369173,0.68000001,225.07,225.06,32.93837056]
[1759398369312,0.68000001,225.07,225.06,31.16]
[1759398370201,5.12306216,225.07,225.06,31.18]
[1759398370401,0.68000001,225.07,225.06,31.18]
[1759398374612,0.68000001,225.07,225.06,31.16]
[1759398375737,0.68000001,225.07,225.02,3.70885696]
[1759398375921,0.68,225.06,225.03,31.16]
[1759398376099,0.68,225.05,225.03,31.16]
[1759398376305,0.68,225.04,225.03,31.16]
[1759398376924,0.68,225.06,225.03,31.16]
[1759398377111,0.68,225.05,225.03,31.16]
[1759398377729,0.68,225.04,225.03,31.16]
[1759398377927,0.68,225.04,225.03,35.60385193]
[1759398378537,0.68,225.06,225.03,35.60385193]
[1759398379435,0.68,225.05,225.03,35.60385193]
[1759398383221,0.71000001,225.07,225.03,35.60385193]
[1759398383428,0.71000001,225.07,225.03,36.32385193]
[1759398383923,1e-08,225.07,225.04,0.68]
[1759398384236,1e-08,225.07,225.05,31.12]
[1759398384443,1e-08,225.07,225.05,32.89852871]
[1759398384619,1e-08,225.07,225.06,0.68]
[1759398385020,1e-08,225.07,225.06,6.90178828]
[1759398387043,1e-08,225.07,225.06,17.77826349]
[1759398387521,1e-08,225.07,225.06,21.48712045]
[1759398387716,1e-08,225.07,225.06,23.19122915]
[1759398388425,1e-08,225.07,225.06,23.6355551]
[1759398389250,1e-08,225.07,225.06,12.75907989]
[1759398389747,1e-08,225.07,225.06,23.6355551]
[1759398390942,1e-08,225.07,225.06,23.19122915]
[1759398391724,1e-08,225.07,225.06,11.63475394]
[1759398391725,0.72000001,225.07,225.06,11.63475394]
[1759398391944,0.72000001,225.07,225.06,36.60752157]
[1759398392144,0.72000001,225.07,225.04,3.70899286]
[1759398392346,0.72,225.06,225.05,31.14]
[1759398402241,1e-08,225.07,225.05,31.14]
[1759398402557,0.72,225.06,225.05,31.14]
[1759398402871,0.72000001,225.07,225.05,31.14]
[1759398403634,0.72,225.06,225.05,31.14]
[1759398404443,1e-08,225.07,225.05,35.58344863]
[1759398404643,1e-08,225.07,225.05,36.26344863]
[1759398405467,1e-08,225.07,225.06,0.68]
[1759398405841,1e-08,225.07,225.06,5.12325957]
[1759398406458,1e-08,225.07,225.06,4.44325957]
[1759398407351,1e-08,225.07,225.06,5.12325957]
[1759398407661,1e-08,225.07,225.06,4.44325957]
[1759398408543,1e-08,225.07,225.05,35.58342776]
[1759398408744,1e-08,225.07,225.05,31.14]
[1759398408946,1e-08,225.07,225.05,35.58338667]
[1759398409645,1e-08,225.07,225.05,36.26338667]
[1759398411071,1e-08,225.07,225.05,35.58338667]
[1759398411451,1e-08,225.07,225.06,31.06]
[1759398412055,0.72000001,225.07,225.04,4.44365446]
[1759398412259,0.72000001,225.07,225.05,31.06]
[1759398412260,0.72,225.06,225.05,31.06]
[1759398412550,1e-08,225.07,225.05,31.06]
[1759398413569,1e-08,225.07,225.05,35.50345675]
[1759398414270,1e-08,225.07,225.03,4.44369834]
[1759398414271,0.71,225.06,225.03,4.44369834]
[1759398414474,1e-08,225.07,225.04,31.72]
[1759398414969,1e-08,225.07,225.05,0.66]
[1759398415265,1e-08,225.07,225.06,31.06]
[1759398415466,1e-08,225.07,225.06,36.16325957]
[1759398415854,1e-08,225.07,225.06,47.03973478]
[1759398416755,1e-08,225.07,225.06,50.74872764]
[1759398420767,1e-08,225.07,225.06,47.03973478]
[1759398422963,1e-08,225.07,225.05,1.77837056]
[1759398422964,0.71000001,225.07,225.05,4.44342949]
[1759398423266,1e-08,225.07,225.06,34.75028058]
[1759398423584,1e-08,225.07,225.06,35.41028058]
[1759398424383,1e-08,225.07,225.06,50.73001536]
[1759398426491,1e-08,225.07,225.06,50.07001536]
[1759398427286,1e-08,225.07,225.06,19.03001536]
[1759398427467,1e-08,225.07,225.06,50.07001536]
[1759398427670,1e-08,225.07,225.06,46.35973478]
[1759398430589,1e-08,225.07,225.06,47.01973478]
[1759398431595,1e-08,225.07,225.06,46.99973478]
[1759398434568,1e-08,225.07,225.06,52.41270044]
[1759398434874,1e-08,225.07,225.06,54.19091289]
[1759398437473,1e-08,225.07,225.06,59.13982465]
[1759398443701,1e-08,225.07,225.06,54.19091289]
[1759398446800,1e-08,225.07,225.06,23.17091289]
[1759398446998,1e-08,225.07,225.06,54.19091289]
[1759398452510,0.1,225.12,225.07,10.87647521]
[1759398452695,0.1,225.12,225.11,14.57602791]
[1759398452896,0.77,225.12,225.11,45.59602791]
[1759398453104,0.1,225.21,225.12,10.87647521]
[1759398453105,1e-08,225.17,225.12,10.87647521]
[1759398453291,1e-08,225.17,225.16,14.57229849]
[1759398453605,1e-08,225.17,225.16,19.98526415]
[1759398453803,0.67000001,225.17,225.16,49.08678418]
[1759398454010,0.67000001,225.17,225.16,52.78260746]
[1759398454189,0.67000001,225.17,225.16,5.41296566]
[1759398454389,0.67000001,225.17,225.16,47.30944087]
[1759398454595,0.67000001,225.17,225.16,51.75072706]
[1759398454795,0.67000001,225.17,225.16,9.85425185]
[1759398454999,0.67000001,225.17,225.16,40.87425185]
[1759398455610,1e-08,225.17,225.16,51.75072706]
[1759398456182,0.67000001,225.17,225.16,51.75072706]
[1759398456382,0.67000001,225.17,225.16,20.73072706]
[1759398456606,1e-08,225.17,225.16,53.54814935]
[1759398457325,1e-08,225.17,225.16,20.73072706]
[1759398457326,0.67000001,225.17,225.16,20.73072706]
[1759398457619,0.67000001,225.17,225.16,51.77072706]
[1759398460009,1e-08,225.17,225.16,40.89425185]
[1759398460203,0.67000001,225.17,225.16,40.89425185]
[1759398461611,1e-08,225.17,225.16,40.89425185]
[1759398461799,0.67000001,225.17,225.16,40.89425185]
[1759398463313,1e-08,225.17,225.16,40.89425185]
[1759398463515,1e-08,225.17,225.16,52.46072706]
[1759398463890,1e-08,225.17,225.16,54.23807037]
[1759398465492,1e-08,225.17,225.16,54.21807037]
[1759398466702,1e-08,225.17,225.16,58.63635099]
[1759398467334,1e-08,225.17,225.16,27.61635099]
[1759398467498,1e-08,225.17,225.16,63.5514316]
[1759398468196,1e-08,225.17,225.16,31.8414316]
[1759398468400,1e-08,225.17,225.16,57.21511309]
[1759398468806,1e-08,225.17,225.16,54.21807037]
[1759398473129,1e-08,225.21,225.2,31.67647521]
[1759398473334,1e-08,225.21,225.2,71.81310107]
[1759398473624,1e-08,225.21,225.2,72.50310107]
[1759398473819,1e-08,225.21,225.2,74.27997066]
[1759398474205,1e-08,225.21,225.2,78.72046799]
[1759398475628,0.70000001,225.21,225.2,74.36680779]
[1759398477635,1e-08,225.21,225.2,74.36680779]
[1759398477836,0.70000001,225.21,225.2,74.36680779]
[1759398478815,0.70000001,225.21,225.2,63.49033258]